bitfinex/quotes_BTCUSD_20250904
["timestamp","ask_amount","ask_price","bid_price","bid_amount"]
[1757012078765,0.80901357,110250.0,110240.0,0.002]
[1757012079170,1.18294289,110250.0,110240.0,0.002]
[1757012079372,1.27485888,110250.0,110240.0,0.002]
[1757012080192,1.05092956,110250.0,110240.0,0.002]
[1757012080396,1.7987882,110250.0,110240.0,0.002]
[1757012080594,1.42485888,110250.0,110240.0,0.002]
[1757012081197,1.05092956,110250.0,110240.0,0.001]
[1757012081401,1.42585888,110250.0,110240.0,0.001]
[1757012081612,0.18142235,110240.0,110230.0,0.0004]
[1757012081820,0.64726766,110240.0,110230.0,0.0004]
[1757012082040,0.27529834,110240.0,110230.0,0.00248]
[1757012082245,0.30258306,110240.0,110230.0,0.0004]
[1757012082447,0.67651238,110240.0,110230.0,0.0004]
[1757012082894,0.67651238,110240.0,110230.0,0.00566]
[1757012083127,0.67651238,110240.0,110230.0,0.00248]
[1757012083335,0.67951238,110240.0,110230.0,0.0004]
[1757012083580,0.77142837,110240.0,110230.0,0.0004]
[1757012083790,0.77242837,110240.0,110230.0,0.0004]
[1757012084199,0.39849905,110240.0,110230.0,0.0004]
[1757012084405,0.77242837,110240.0,110230.0,0.0004]
[1757012085686,0.67751238,110240.0,110230.0,0.0004]
[1757012087122,0.68051238,110240.0,110230.0,0.0004]
[1757012088186,0.30658306,110240.0,110230.0,0.0004]
[1757012088385,0.70008739,110240.0,110230.0,0.0004]
[1757012089048,1.41401671,110240.0,110230.0,0.0004]
[1757012089254,1.59872565,110240.0,110230.0,0.0004]
[1757012089702,1.87643635,110240.0,110230.0,0.0004]
[1757012090166,2.30640964,110240.0,110230.0,0.0004]
[1757012090592,1.18462168,110240.0,110230.0,0.0004]
[1757012090806,2.02174882,110240.0,110230.0,0.0004]
[1757012091263,2.00474952,110240.0,110230.0,0.0004]
[1757012092160,1.25689088,110240.0,110230.0,0.0004]
[1757012092383,2.00474952,110240.0,110230.0,0.0004]
[1757012093317,1.25689088,110240.0,110230.0,0.0004]
[1757012093525,2.00474952,110240.0,110230.0,0.0004]
[1757012093753,1.85058952,110240.0,110230.0,0.0004]
[1757012093966,2.00474952,110240.0,110230.0,0.0004]
[1757012094179,2.00474574,110240.0,110230.0,0.0004]
[1757012095464,2.00474574,110240.0,110210.0,0.18456383]
[1757012095465,0.1814388,110230.0,110210.0,0.18456383]
[1757012095683,0.1814388,110230.0,110190.0,0.0004]
[1757012095684,0.1814882,110200.0,110190.0,0.0004]
[1757012095895,1.19499784,110200.0,110190.0,0.0004]
[1757012096138,1.22425254,110200.0,110190.0,0.0004]
[1757012096376,1.59182591,110200.0,110190.0,0.0004]
[1757012096592,1.61626336,110200.0,110190.0,0.0004]
[1757012097011,1.61726336,110200.0,110190.0,0.0004]
[1757012097226,1.61740403,110200.0,110190.0,0.0004]
[1757012099386,1.46324403,110200.0,110190.0,0.0004]
[1757012099806,1.61744403,110200.0,110190.0,0.00248]
[1757012100258,1.61744403,110200.0,110190.0,0.0004]
[1757012100475,0.71538539,110200.0,110190.0,0.00248]
[1757012100680,1.61744403,110200.0,110190.0,0.0004]
[1757012101113,2.23822512,110200.0,110190.0,0.0004]
[1757012101330,4.19959931,110200.0,110190.0,0.0004]
[1757012101544,4.24959931,110200.0,110190.0,0.0004]
[1757012101728,4.06272639,110200.0,110190.0,0.0004]
[1757012101969,4.21692639,110200.0,110190.0,0.0004]
[1757012102393,4.21592639,110200.0,110190.0,0.0004]
[1757012102616,4.21692639,110200.0,110190.0,0.0004]
[1757012102841,2.56206144,110200.0,110190.0,0.0004]
[1757012103055,3.4455548,110200.0,110190.0,0.0004]
[1757012103441,3.4485548,110200.0,110190.0,0.0004]
[1757012103680,3.4487948,110200.0,110190.0,0.0004]
[1757012104807,3.2943548,110200.0,110190.0,0.0004]
[1757012105014,3.54067079,110200.0,110190.0,0.0004]
[1757012106692,2.77496848,110200.0,110190.0,0.0004]
[1757012106898,2.40888944,110200.0,110190.0,0.0004]
[1757012107107,2.56324944,110200.0,110190.0,0.0004]
[1757012107518,1.8153908,110200.0,110190.0,0.0004]
[1757012107727,2.56324944,110200.0,110190.0,0.0004]
[1757012107905,2.65516543,110200.0,110190.0,0.0004]
[1757012108355,3.02909475,110200.0,110190.0,0.0004]
[1757012108573,3.10022776,110200.0,110190.0,0.0004]
[1757012108785,3.05121838,110200.0,110190.0,0.0004]
[1757012111386,3.11676237,110200.0,110190.0,0.0004]
[1757012111857,2.74533442,110200.0,110190.0,0.0004]
[1757012112041,2.89364895,110200.0,110190.0,0.0004]
[1757012112280,2.94220443,110200.0,110190.0,0.0004]
[1757012113328,2.90983411,110200.0,110190.0,0.0004]
[1757012113756,3.01410871,110200.0,110190.0,0.0004]
[1757012113995,3.1060247,110200.0,110190.0,0.0004]
[1757012114755,3.13841861,110200.0,110190.0,0.0004]
[1757012115230,2.01663065,110200.0,110190.0,0.0004]
[1757012115423,3.1060247,110200.0,110190.0,0.0004]
[1757012116282,3.01410871,110200.0,110190.0,0.0004]
[1757012118349,3.02255851,110200.0,110190.0,0.0004]
[1757012118549,3.01621785,110200.0,110190.0,0.0004]
[1757012118756,3.02255542,110200.0,110190.0,0.0004]
[1757012120109,2.86819542,110200.0,110190.0,0.0004]
[1757012120320,3.02319542,110200.0,110190.0,0.0004]
[1757012120752,1.74640746,110200.0,110190.0,0.00248]
[1757012120968,2.96888082,110200.0,110190.0,0.00248]
[1757012121178,2.96888082,110200.0,110190.0,0.0004]
[1757012121387,2.76392082,110200.0,110190.0,0.0004]
[1757012121609,2.91584082,110200.0,110190.0,0.00248]
[1757012121839,0.33150467,110190.0,110180.0,0.0034]
[1757012122053,0.90510342,110190.0,110180.0,0.0034]
[1757012122269,0.90510342,110190.0,110180.0,0.18700114]
[1757012122270,0.50659375,110190.0,110180.0,0.18700114]
[1757012122490,0.28310755,110190.0,110180.0,0.21009114]
[1757012122716,0.25872816,110190.0,110180.0,0.21009114]
[1757012122954,0.22621647,110190.0,110180.0,0.21009114]
[1757012123393,0.25972816,110190.0,110180.0,0.21009114]
[1757012123610,0.23243249,110190.0,110180.0,0.21009114]
[1757012123826,0.1989208,110190.0,110180.0,0.21009114]
[1757012124266,0.7009208,110190.0,110180.0,0.21009114]
[1757012124480,0.57847249,110190.0,110180.0,0.58402046]
[1757012124696,0.57647249,110190.0,110180.0,0.58402046]
[1757012125335,0.54402032,110190.0,110180.0,0.95794978]
[1757012125586,0.54402032,110190.0,110180.0,0.21009114]
[1757012125805,0.51957501,110190.0,110180.0,0.21009114]
[1757012126026,0.54402032,110190.0,110180.0,0.58402046]
[1757012126244,0.51957501,110190.0,110180.0,0.58402046]
[1757012126886,0.51957501,110190.0,110180.0,0.58602046]
[1757012127109,0.51957501,110190.0,110180.0,0.58702046]
[1757012128899,0.51957501,110190.0,110180.0,0.21309114]
[1757012129123,0.51957501,110190.0,110180.0,0.58702046]
[1757012129349,1.075009,110190.0,110180.0,0.19000114]
[1757012129628,1.25822431,110190.0,110180.0,0.18700114]
[1757012129771,1.25613431,110190.0,110180.0,0.18700114]
[1757012131037,1.09945431,110190.0,110180.0,0.18700114]
[1757012131242,1.25617431,110190.0,110180.0,0.18700114]
[1757012131446,1.231729,110190.0,110180.0,0.18700114]
[1757012131649,0.85779968,110190.0,110180.0,0.18700114]
[1757012131887,1.231729,110190.0,110180.0,0.18700114]
[1757012132300,0.67629501,110190.0,110180.0,0.18700114]
[1757012132516,0.51957501,110190.0,110180.0,0.18981114]
[1757012132793,0.17629501,110190.0,110180.0,0.56374046]
[1757012133019,0.01957501,110190.0,110180.0,0.56374046]
[1757012133492,0.01957501,110190.0,110180.0,0.18700114]
[1757012133719,0.39350433,110190.0,110180.0,0.18981114]
[1757012133934,0.01957501,110190.0,110180.0,0.18981114]
[1757012134869,0.01957501,110190.0,110180.0,0.56374046]
[1757012136338,0.39017699,110200.0,110190.0,0.18150467]
[1757012136545,0.39017699,110200.0,110190.0,0.18359467]
[1757012136546,0.60214849,110200.0,110190.0,0.18359467]
[1757012136753,0.78363669,110200.0,110190.0,0.18359467]
[1757012137196,0.60214849,110200.0,110190.0,0.18359467]
[1757012137374,0.57485377,110200.0,110190.0,0.18640467]
[1757012137609,0.75634197,110200.0,110190.0,0.18644467]
[1757012137849,0.75634197,110200.0,110190.0,0.18363467]
[1757012138691,0.38241265,110200.0,110190.0,0.18363467]
[1757012138905,0.38241265,110200.0,110190.0,0.00213]
[1757012139116,0.75850197,110200.0,110190.0,4e-05]
[1757012139289,0.76153197,110200.0,110190.0,4e-05]
[1757012139503,0.76191159,110200.0,110190.0,0.00213]
[1757012139720,0.76191159,110200.0,110190.0,0.18363467]
[1757012140354,0.41186435,110200.0,110190.0,0.18363467]
[1757012140490,0.78617329,110200.0,110190.0,0.18363467]
[1757012140892,0.07153615,110200.0,110190.0,0.18363467]
[1757012141128,0.22813615,110200.0,110190.0,0.18363467]
[1757012141336,0.40962435,110200.0,110190.0,0.18363467]
[1757012142197,0.22813615,110200.0,110190.0,0.18363467]
[1757012142428,0.20084445,110200.0,110190.0,0.18644467]
[1757012142625,0.38233265,110200.0,110190.0,0.18363467]
[1757012144330,0.22573265,110200.0,110190.0,0.18363467]
[1757012144539,0.38241265,110200.0,110190.0,0.18363467]
[1757012144977,0.36288224,110200.0,110190.0,0.18363467]
[1757012145185,0.02471404,110200.0,110190.0,0.18363467]
[1757012145392,0.02471404,110200.0,110190.0,0.18644467]
[1757012145624,0.02471404,110200.0,110190.0,0.56075361]
[1757012146861,0.02471404,110200.0,110190.0,0.56175361]
[1757012148528,0.02471404,110200.0,110190.0,1.12098854]
[1757012148741,0.02471404,110200.0,110190.0,1.46098854]
[1757012148962,0.02471404,110200.0,110190.0,1.48192736]
[1757012149168,0.02471404,110200.0,110190.0,1.48092736]
[1757012149588,0.02471404,110200.0,110190.0,1.48392736]
[1757012149801,0.02471404,110200.0,110190.0,1.47892736]
[1757012150218,0.02471404,110200.0,110190.0,1.48592736]
[1757012151455,0.02471404,110200.0,110190.0,1.52603804]
[1757012152938,0.02471404,110200.0,110190.0,1.55332115]
[1757012155144,0.02471404,110200.0,110190.0,1.70968115]
[1757012156381,0.02471404,110200.0,110190.0,2.10968115]
[1757012157006,0.02471404,110200.0,110190.0,2.10964115]
[1757012157208,0.02471404,110200.0,110190.0,2.10968115]
[1757012157847,0.02471404,110200.0,110190.0,1.92923115]
[1757012157983,0.02471404,110200.0,110190.0,2.08559115]
[1757012158597,0.02471404,110200.0,110190.0,1.33697327]
[1757012158802,0.02471404,110200.0,110190.0,2.08559115]
[1757012161883,1e-08,110200.0,110190.0,2.08559115]
[1757012162713,1e-08,110200.0,110190.0,2.10968115]
[1757012164010,1e-08,110200.0,110190.0,2.15968115]
[1757012164241,1e-08,110200.0,110190.0,2.20968115]
[1757012164452,1e-08,110200.0,110190.0,2.15956115]
[1757012164662,1e-08,110200.0,110190.0,2.00332115]
[1757012164870,1e-08,110200.0,110190.0,2.13155115]
[1757012165112,1e-08,110200.0,110190.0,2.12855115]
[1757012165322,1e-08,110200.0,110190.0,2.13855115]
[1757012166927,0.00210001,110200.0,110190.0,1.33708327]
[1757012167137,0.00504001,110200.0,110190.0,1.15777445]
[1757012167354,0.00504001,110200.0,110190.0,0.79208339]
[1757012167567,0.00504001,110200.0,110190.0,0.54709134]
[1757012167777,0.00504001,110200.0,110190.0,1.26140028]
[1757012168628,0.00504001,110200.0,110190.0,0.88709134]
[1757012168848,0.00504001,110200.0,110190.0,0.54721134]
[1757012169252,0.00504001,110200.0,110190.0,0.29857535]
[1757012169474,0.00504001,110200.0,110190.0,0.45529535]
[1757012169683,0.00504001,110200.0,110190.0,0.41518467]
[1757012170313,0.00504001,110200.0,110190.0,0.41118467]
[1757012170918,0.00504001,110200.0,110190.0,0.40618467]
[1757012171124,0.00504001,110200.0,110190.0,0.40818467]
[1757012172583,0.00504001,110200.0,110190.0,0.78461361]
[1757012173461,0.00504001,110200.0,110190.0,0.78249361]
[1757012174085,1e-08,110200.0,110190.0,0.8765296]
[1757012174477,1e-08,110200.0,110190.0,0.9179773]
[1757012178791,1e-08,110200.0,110190.0,1.29509624]
[1757012179042,1e-08,110200.0,110190.0,1.65603506]
[1757012179454,1e-08,110200.0,110190.0,2.08331844]
[1757012179865,1e-08,110200.0,110190.0,1.68331844]
[1757012180070,1e-08,110200.0,110190.0,1.52659844]
[1757012180316,1e-08,110200.0,110190.0,2.08323844]
[1757012180520,1e-08,110200.0,110190.0,2.08042844]
[1757012181570,0.00504001,110200.0,110190.0,0.77305056]
[1757012181792,1e-08,110200.0,110190.0,1.3060795]
[1757012181998,1e-08,110200.0,110190.0,1.7060795]
[1757012182420,1e-08,110200.0,110190.0,1.68038844]
[1757012182623,1e-08,110200.0,110190.0,1.3060795]
[1757012183040,1e-08,110200.0,110190.0,0.93177056]
[1757012183249,1e-08,110200.0,110190.0,1.3060795]
[1757012184462,1e-08,110200.0,110190.0,1.1494795]
[1757012184666,1e-08,110200.0,110190.0,1.3060395]
[1757012187772,1e-08,110200.0,110190.0,1.68034844]
[1757012189095,0.00504001,110200.0,110190.0,0.92961056]
[1757012189340,1e-08,110200.0,110190.0,1.3060395]
[1757012189825,1e-08,110200.0,110190.0,1.68315844]
[1757012191387,1e-08,110200.0,110190.0,0.93173056]
[1757012191588,1e-08,110200.0,110190.0,1.68034844]
[1757012192699,0.00276501,110210.0,110200.0,0.1814882]
[1757012192916,0.00281201,110210.0,110200.0,0.80395313]
[1757012193104,0.00491201,110210.0,110200.0,0.80395313]
[1757012193770,0.00491201,110210.0,110200.0,0.80495313]
[1757012193985,0.00491201,110210.0,110200.0,0.80807313]
[1757012194465,0.00491201,110210.0,110200.0,0.80595313]
[1757012196108,0.19117521,110230.0,110220.0,0.18145527]
[1757012196299,0.19321521,110230.0,110220.0,0.33765527]
[1757012196497,0.37465401,110230.0,110220.0,0.33765527]
[1757012196667,0.19321521,110230.0,110220.0,0.33765527]
[1757012197254,0.19421521,110230.0,110220.0,0.33765527]
[1757012198015,0.19720521,110230.0,110220.0,0.33765527]
[1757012198581,0.38038594,110230.0,110220.0,0.33765527]
[1757012201377,0.006077,110230.0,110220.0,0.33765527]
[1757012201597,0.38017538,110230.0,110220.0,0.33765527]
[1757012202646,0.006077,110230.0,110220.0,0.33765527]
[1757012202856,0.38017538,110230.0,110220.0,0.33765527]
[1757012205712,0.003087,110230.0,110220.0,0.33964527]
[1757012205924,0.001047,110230.0,110220.0,1.09101203]
[1757012206791,4.7e-05,110230.0,110220.0,1.09101203]
[1757012206901,4.7e-05,110230.0,110220.0,1.09301203]
[1757012208599,4.7e-05,110230.0,110220.0,1.18492802]
[1757012208876,4.7e-05,110230.0,110220.0,1.52492802]
[1757012209081,4.7e-05,110230.0,110220.0,0.77673126]
[1757012209281,4.7e-05,110230.0,110220.0,1.52492802]
[1757012209618,4.7e-05,110230.0,110220.0,1.56653612]
[1757012210410,4.7e-05,110230.0,110220.0,1.63341612]
[1757012212432,4.7e-05,110230.0,110220.0,1.63273612]
[1757012220058,4.7e-05,110230.0,110220.0,1.65367494]
[1757012220446,4.7e-05,110230.0,110220.0,0.90547818]
[1757012220681,4.7e-05,110230.0,110220.0,1.65367494]
[1757012221971,4.7e-05,110230.0,110220.0,1.68095125]
[1757012223728,4.7e-05,110230.0,110220.0,1.67995125]
[1757012223969,4.7e-05,110230.0,110220.0,1.68295125]
[1757012224203,4.7e-05,110230.0,110220.0,0.77923449]
[1757012224420,4.7e-05,110230.0,110220.0,0.93371449]
[1757012224631,4.7e-05,110230.0,110220.0,1.68191125]
[1757012224856,4.7e-05,110230.0,110220.0,1.68391125]
[1757012227678,4.7e-05,110230.0,110220.0,0.78023449]
[1757012227893,4.7e-05,110230.0,110220.0,2.08379125]
[1757012229033,0.005397,110230.0,110220.0,1.15413567]
[1757012229243,0.005397,110230.0,110220.0,1.28359405]
[1757012229672,4.7e-05,110230.0,110220.0,1.28562405]
[1757012229904,0.002207,110230.0,110220.0,1.66292243]
[1757012230322,4.7e-05,110230.0,110220.0,1.28882405]
[1757012230843,4.7e-05,110230.0,110220.0,1.66292243]
[1757012231056,4.7e-05,110230.0,110220.0,1.66332243]
[1757012232193,0.002207,110230.0,110220.0,1.28395405]
[1757012232607,0.002207,110230.0,110220.0,1.28598405]
[1757012233358,0.002207,110230.0,110220.0,1.28918405]
[1757012234211,0.002207,110230.0,110220.0,1.28598405]
[1757012234416,0.002207,110230.0,110220.0,0.91188567]
[1757012234620,0.002207,110230.0,110220.0,1.28598405]
[1757012234827,0.002207,110230.0,110220.0,1.28586405]
[1757012236736,0.002207,110230.0,110220.0,1.13026405]
[1757012236942,0.002207,110230.0,110220.0,1.28574405]
[1757012237146,0.002207,110230.0,110220.0,1.28894405]
[1757012238327,0.002207,110230.0,110220.0,1.28574405]
[1757012240841,0.002207,110230.0,110220.0,1.28554405]
[1757012242539,0.002207,110230.0,110220.0,1.28874405]
[1757012243117,4.7e-05,110230.0,110220.0,1.28874405]
[1757012243900,0.002207,110230.0,110220.0,0.41413567]
[1757012244038,0.002207,110230.0,110220.0,0.94343405]
[1757012244246,0.002207,110230.0,110220.0,0.94866405]
[1757012244462,4.7e-05,110230.0,110220.0,0.94866405]
[1757012244655,4.7e-05,110230.0,110220.0,0.94666405]
[1757012244884,4.7e-05,110230.0,110220.0,1.32076243]
[1757012245100,4.7e-05,110230.0,110220.0,1.31876243]
[1757012245325,4.7e-05,110230.0,110220.0,0.94466405]
[1757012245570,4.7e-05,110230.0,110220.0,1.32076243]
[1757012246084,4.7e-05,110230.0,110220.0,1.31876243]
[1757012246213,4.7e-05,110230.0,110220.0,1.32076243]
[1757012246463,4.7e-05,110230.0,110220.0,0.57256567]
[1757012246676,4.7e-05,110230.0,110220.0,0.94666405]
[1757012249460,0.002207,110230.0,110220.0,0.94666405]
[1757012250470,0.002207,110230.0,110220.0,0.57256567]
[1757012250675,0.002207,110230.0,110220.0,0.41416567]
[1757012250860,0.002207,110230.0,110220.0,0.94322405]
[1757012251056,0.002207,110230.0,110220.0,0.94642405]
[1757012251545,0.005397,110230.0,110220.0,0.56713567]
[1757012251759,0.005397,110230.0,110220.0,0.44794337]
[1757012252081,0.005397,110230.0,110220.0,0.82204175]
[1757012252288,0.005397,110230.0,110220.0,0.44794337]
[1757012252691,0.002207,110230.0,110220.0,0.44997337]
[1757012252902,0.002207,110230.0,110220.0,0.82727175]
[1757012253549,4.7e-05,110230.0,110220.0,0.82727175]
[1757012253758,4.7e-05,110230.0,110220.0,0.45317337]
[1757012254013,4.7e-05,110230.0,110220.0,0.82727175]
[1757012255696,4.7e-05,110230.0,110220.0,1.29328612]
[1757012256561,4.7e-05,110230.0,110220.0,0.57236644]
[1757012256758,4.7e-05,110230.0,110220.0,1.3205632]
[1757012256936,4.7e-05,110230.0,110220.0,1.3195632]
[1757012258162,4.7e-05,110230.0,110220.0,1.3225632]
[1757012261586,4.7e-05,110230.0,110220.0,0.94826873]
[1757012264260,4.7e-05,110230.0,110220.0,1.28826873]
[1757012264687,4.7e-05,110230.0,110220.0,0.91436644]
[1757012264895,4.7e-05,110230.0,110220.0,1.28826873]
[1757012267484,4.7e-05,110230.0,110220.0,1.68310984]
[1757012267689,4.7e-05,110230.0,110220.0,1.77873984]
[1757012267943,4.7e-05,110230.0,110220.0,1.68310984]
[1757012268120,4.7e-05,110230.0,110220.0,0.93530526]
[1757012268290,4.7e-05,110230.0,110220.0,1.68310984]
[1757012269897,4.7e-05,110230.0,110220.0,1.52810984]
[1757012270135,4.7e-05,110230.0,110220.0,1.68290984]
[1757012270540,4.7e-05,110230.0,110220.0,2.08290984]
[1757012270943,4.7e-05,110230.0,110220.0,1.92810984]
[1757012271167,0.97536449,110280.0,110270.0,0.18137299]
[1757012271430,1.0966813,110280.0,110270.0,0.18137299]
[1757012272167,0.92215058,110280.0,110270.0,0.18137299]
[1757012272378,0.00212702,110280.0,110270.0,0.18137299]
[1757012272589,0.00212702,110280.0,110270.0,0.33617299]
[1757012273009,0.37602931,110280.0,110270.0,0.18137299]
[1757012273226,0.37788931,110280.0,110270.0,0.18137299]
[1757012273430,0.55924585,110280.0,110270.0,0.18137299]
[1757012273854,0.37788931,110280.0,110270.0,0.18137299]
[1757012274262,0.37788931,110280.0,110270.0,0.18207977]
[1757012274472,0.18534356,110280.0,110270.0,0.18207977]
[1757012274672,0.55924585,110280.0,110270.0,0.18207977]
[1757012275145,0.18534356,110280.0,110270.0,0.18207977]
[1757012275341,0.55924585,110280.0,110270.0,0.18207977]
[1757012276275,0.37788931,110280.0,110270.0,0.18207977]
[1757012277009,0.55924585,110280.0,110270.0,0.18207977]
[1757012277207,0.37788931,110280.0,110270.0,0.18207977]
[1757012279187,0.55924585,110280.0,110270.0,0.18207977]
[1757012279409,0.18534356,110280.0,110270.0,0.18207977]
[1757012279730,0.55924585,110280.0,110270.0,0.18207977]
[1757012280700,0.18534356,110280.0,110270.0,0.18207977]
[1757012280894,0.55924585,110280.0,110270.0,0.18207977]
[1757012281220,0.37788931,110280.0,110270.0,0.18207977]
[1757012281970,0.55924585,110280.0,110270.0,0.001]
[1757012282177,0.55924585,110280.0,110270.0,0.18237299]
[1757012282791,0.93314814,110280.0,110270.0,0.001]
[1757012283777,0.18137299,110270.0,110260.0,0.18138468]
[1757012284042,0.55527528,110270.0,110260.0,0.18138468]
[1757012284249,0.55921528,110270.0,110260.0,0.18138468]
[1757012284688,0.55921528,110270.0,110260.0,0.18138944]
[1757012285518,0.55921528,110270.0,110260.0,0.001]
[1757012285739,0.71397528,110270.0,110260.0,0.18238944]
[1757012288954,0.37598229,110270.0,110260.0,0.18238944]
[1757012289162,0.00208,110270.0,110260.0,0.18765944]
[1757012289371,0.53074229,110270.0,110260.0,0.18765944]
[1757012290575,0.87729185,110270.0,110260.0,0.001]
[1757012290780,1.29884353,110270.0,110260.0,0.001]
[1757012290958,1.31838677,110270.0,110260.0,0.001]
[1757012291583,0.18140589,110250.0,110240.0,0.19049313]
[1757012291796,0.71205818,110250.0,110240.0,0.19049313]
[1757012292001,0.71205818,110250.0,110240.0,0.18142202]
[1757012293401,0.71205818,110250.0,110240.0,0.18453202]
[1757012293598,0.18140426,110260.0,110240.0,0.18669202]
[1757012293800,0.71006655,110260.0,110240.0,0.18669202]
[1757012294020,0.18140589,110250.0,110240.0,0.18769202]
[1757012294222,0.18338589,110250.0,110240.0,0.18769202]
[1757012294466,0.55728818,110250.0,110240.0,0.00627]
[1757012294647,0.55728818,110250.0,110240.0,0.18669235]
[1757012295618,0.55728818,110250.0,110240.0,0.18769235]
[1757012298249,0.55728818,110250.0,110240.0,0.00627]
[1757012298864,0.55728818,110250.0,110240.0,0.001]
[1757012298865,0.55924818,110250.0,110240.0,0.001]
[1757012299069,0.93315047,110250.0,110240.0,0.001]
[1757012299250,0.55924818,110250.0,110240.0,0.001]
[1757012299493,0.55728818,110250.0,110240.0,0.001]
[1757012299707,0.55924818,110250.0,110240.0,0.001]
[1757012300097,0.93315047,110250.0,110240.0,0.001]
[1757012300589,0.18142235,110240.0,110230.0,0.18454872]
[1757012300804,0.71206464,110240.0,110230.0,0.18454872]
[1757012301717,0.71206464,110240.0,110230.0,0.18670872]
[1757012302018,0.71206464,110240.0,110230.0,0.18770872]
[1757012302222,0.33816235,110240.0,110230.0,0.18770872]
[1757012302426,0.71206464,110240.0,110230.0,0.18770872]
[1757012304440,0.00198,110240.0,110230.0,0.18770872]
[1757012304654,0.37390229,110240.0,110230.0,0.18770872]
[1757012305240,0.55532464,110240.0,110230.0,0.18770872]
[1757012306633,0.55532464,110240.0,110230.0,0.34246872]
[1757012307354,0.55730464,110240.0,110230.0,0.34246872]
[1757012308445,0.55730464,110240.0,110230.0,0.18770872]
[1757012311413,0.34551045,110240.0,110230.0,0.18770872]
[1757012312362,0.18140589,110250.0,110230.0,0.18770872]
[1757012312611,0.71006818,110250.0,110240.0,0.18453235]
[1757012312836,0.71204818,110250.0,110230.0,0.18554872]
[1757012313062,0.55532464,110240.0,110230.0,0.34030872]
[1757012313271,0.55532464,110240.0,110230.0,0.34246872]
[1757012313932,0.55730464,110240.0,110230.0,0.00411]
[1757012314159,0.1814388,110230.0,110220.0,0.22091511]
[1757012314364,0.55534109,110230.0,110220.0,0.33932527]
[1757012314567,0.71010109,110230.0,110210.0,0.26048043]
[1757012314768,0.71010109,110230.0,110210.0,0.41528743]
[1757012314769,0.71208109,110230.0,110210.0,0.41528743]
[1757012315147,0.71208109,110230.0,110220.0,0.18145527]
[1757012315684,0.71208109,110230.0,110220.0,0.18345527]
[1757012315983,0.71208109,110230.0,110220.0,0.18145527]
[1757012316356,0.71208109,110230.0,110220.0,0.18245527]
[1757012316797,0.71208109,110230.0,110220.0,0.001]
[1757012317189,0.71404109,110230.0,110220.0,0.001]
[1757012317421,0.71208109,110230.0,110220.0,0.001]
[1757012317614,1.27177536,110230.0,110220.0,0.001]
[1757012317792,0.89787307,110230.0,110220.0,0.001]
[1757012317991,0.92515925,110230.0,110220.0,0.001]
[1757012318216,0.92515925,110230.0,110220.0,0.003]
[1757012318505,0.18145527,110220.0,110210.0,4.7e-05]
[1757012318714,0.55535756,110220.0,110210.0,0.18451873]
[1757012318944,0.55733756,110220.0,110210.0,0.18451873]
[1757012319966,0.71209756,110220.0,110210.0,0.18451873]
[1757012321335,0.71209756,110220.0,110210.0,0.18151873]
[1757012321955,0.71405756,110220.0,110210.0,4.7e-05]
[1757012322162,0.71209756,110220.0,110210.0,4.7e-05]
[1757012322747,0.71405756,110220.0,110210.0,4.7e-05]
[1757012323230,0.73163752,110220.0,110210.0,4.7e-05]
[1757012323439,0.35969523,110220.0,110210.0,4.7e-05]
[1757012323655,1.10627323,110220.0,110210.0,4.7e-05]
[1757012323861,1.10823323,110220.0,110210.0,4.7e-05]
[1757012324696,1.13552082,110220.0,110210.0,4.7e-05]
[1757012324923,1.13356082,110220.0,110210.0,4.7e-05]
[1757012325128,0.38502282,110220.0,110210.0,4.7e-05]
[1757012325332,1.13356082,110220.0,110210.0,4.7e-05]
[1757012325554,1.56743681,110220.0,110210.0,4.7e-05]
[1757012326862,1.41267681,110220.0,110210.0,4.7e-05]
[1757012327066,1.56755681,110220.0,110210.0,4.7e-05]
[1757012328061,0.81697881,110220.0,110210.0,4.7e-05]
[1757012328269,1.56551681,110220.0,110210.0,4.7e-05]
[1757012332573,0.81697881,110220.0,110210.0,4.7e-05]
[1757012332816,1.56551681,110220.0,110210.0,4.7e-05]
[1757012333436,1.56551681,110220.0,110210.0,0.005177]
[1757012333763,1.56551681,110220.0,110210.0,4.7e-05]
[1757012337417,1.58994459,110220.0,110210.0,4.7e-05]
[1757012338219,1.56551681,110220.0,110210.0,4.7e-05]
[1757012338421,1.58994459,110220.0,110210.0,4.7e-05]
[1757012339245,1.56551681,110220.0,110210.0,4.7e-05]
[1757012339389,1.58994459,110220.0,110210.0,4.7e-05]
[1757012340047,1.6403431,110220.0,110210.0,4.7e-05]
[1757012340222,1.58994459,110220.0,110210.0,4.7e-05]
[1757012343347,1.43514459,110220.0,110210.0,4.7e-05]
[1757012343574,1.58994459,110220.0,110210.0,0.003047]
[1757012343746,1.58994459,110220.0,110210.0,0.005177]
[1757012344313,1.43514459,110220.0,110210.0,0.005177]
[1757012344535,1.58994459,110220.0,110210.0,0.005177]
[1757012344874,1.58994459,110220.0,110210.0,4.7e-05]
[1757012345991,1.67383305,110220.0,110210.0,4.7e-05]
[1757012346638,1.58994459,110220.0,110210.0,4.7e-05]
[1757012347433,1.62245628,110220.0,110210.0,4.7e-05]
[1757012347749,1.46765628,110220.0,110210.0,0.003117]
[1757012347956,0.07125533,110220.0,110210.0,0.18660873]
[1757012348166,0.01953996,110220.0,110210.0,0.18660873]
[1757012348345,0.39380896,110220.0,110210.0,0.18660873]
[1757012348488,0.374269,110220.0,110210.0,0.18660873]
[1757012348698,0.71051104,110230.0,110220.0,0.18145527]
[1757012348905,0.640546,110230.0,110220.0,0.18654527]
[1757012349141,0.8219848,110230.0,110220.0,0.18654527]
[1757012349861,0.80242379,110230.0,110220.0,0.18654527]
[1757012349996,0.82198235,110230.0,110220.0,0.18654527]
[1757012350403,0.44771335,110230.0,110220.0,0.18654527]
[1757012350606,0.84926873,110230.0,110220.0,0.18654527]
[1757012350812,0.85124873,110230.0,110220.0,0.18654527]
[1757012351225,0.84926873,110230.0,110220.0,0.00509]
[1757012351842,0.84926873,110230.0,110220.0,0.18654527]
[1757012352047,0.82198235,110230.0,110220.0,0.18654527]
[1757012352458,0.11147455,110230.0,110220.0,0.18654527]
[1757012352659,0.39382756,110230.0,110220.0,0.18654527]
[1757012352869,1.21199627,110240.0,110220.0,0.18654527]
[1757012352870,0.5556918,110240.0,110230.0,0.1814388]
[1757012353067,1.19820972,110240.0,110230.0,0.1834588]
[1757012353272,1.19820972,110240.0,110230.0,0.00307]
[1757012353504,1.19820972,110240.0,110220.0,0.18452527]
[1757012353505,0.97989655,110240.0,110220.0,0.18452527]
[1757012353708,0.7105078,110230.0,110220.0,0.18452527]
[1757012353931,0.7105078,110230.0,110220.0,0.00509]
[1757012353932,0.7124878,110230.0,110220.0,0.00509]
[1757012354134,0.7124878,110230.0,110220.0,0.18654527]
[1757012355628,0.80440379,110230.0,110210.0,0.21187256]
[1757012355830,0.529149,110220.0,110210.0,0.18458873]
[1757012356009,0.529149,110220.0,110210.0,0.18660873]
[1757012356206,0.71060427,110220.0,110210.0,0.18660873]
[1757012356406,1.08487327,110220.0,110210.0,0.18660873]